Cogmind - Beta 17.1 @@@ ROGUE MODE // 2026.09.20 @ 16:05:40 Player: UnderDoug Result: Destroyed by Y-54 Guardian with Gatling Laser Performance ------------- Evolutions (4) 2000 Regions Visited (4) 800 Robots Destroyed (45) 225 Value Destroyed (1379) 1379 Prototype IDs (14) 280 Alien Tech Used (0) 0 Bonus (6603) 6603 TOTAL SCORE: 11287 Bonus ------- Follower Combat Kills 94 Prayed to X0-1V1 5000 Major X0-1V1 Interference 750 Registered with UFD 300 Met Optimus in HQ 500 Friendly Fire -41 Cogmind --------- Core Integrity 0/550 Matter 612/900 Energy 226/1300 System Corruption 12% Temperature Cool (12) Movement Core (350) Ox6 Location -6/Factory Parts ------- > --- POWER (2) -------- (None) > --- PROPULSION (4) --- (None) > --- UTILITY (6) ------ Large Storage Unit > --- WEAPON (3) ------- (None) > --- INVENTORY (15) --- Flexi-carbon Leg Backup Propulsion I Gravmag Array Large Storage Unit High-capacity Matter Pod (200) Improved Reaction Control System Peak State ------------ > --- POWER ------------ Light Ion Engine Light Fission Core > --- PROPULSION ------- Aluminum Leg Aluminum Leg Aluminum Leg Improved Carbon-fiber Leg > --- UTILITY ---------- Scrap Suit Large Storage Unit Experimental Sensor Array Core Shielding X0-1V1's Piety Tracker > --- WEAPON ----------- Flak Gun Junk Cannon > --- INVENTORY -------- Light Ion Engine Large Storage Unit High-capacity Matter Pod Grenade Launcher Mining Claw Makeshift Axe [Rating: 61] Favorites ----------- Power Light Ion Engine Engine Light Ion Engine Power Core Light Fission Core Propulsion Aluminum Leg Treads Medium Treads Leg Aluminum Leg Wheel Wheel Hover Unit Backup Propulsion I Utility Large Storage Unit Device X0-1V1's Piety Tracker Storage Large Storage Unit Protection Core Shielding Weapon Improved Light Cannon Energy Gun EM Pulse Gun Ballistic Gun Flak Gun Ballistic Cannon Improved Light Cannon Launcher Grenade Launcher Special Weapon Junk Cannon Slashing Weapon Mining Claw Build | -11 -10 -10 -9 -6 ------- Run | Yrd Mat Sub Scr Fac Slots Evolved 8 | . . . . 8 Power 1 | . . . . 1 Propulsion 2 | . . . . 2 Utility 4 | . . . . 4 Weapon 1 | . . . . 1 Parts Attached 57 | 8 10 3 5 31 Power 10 | 1 3 1 1 4 Engine 8 | 1 3 1 . 3 Core 2 | . . . 1 1 Reactor . | . . . . . Propulsion 19 | 2 2 2 . 13 Treads 7 | . . . . 7 Leg 8 | 2 2 2 . 2 Wheel 3 | . . . . 3 Hover 1 | . . . . 1 Flight . | . . . . . Utility 15 | 2 2 . 2 9 Device 10 | 1 1 . 2 6 Storage 4 | 1 1 . . 2 Processor . | . . . . . Hackware . | . . . . . Protection 1 | . . . . 1 Artifact . | . . . . . Weapon 13 | 3 3 . 2 5 Energy Gun 1 | 1 . . . . Energy Cannon . | . . . . . Ballistic Gun 4 | 2 . . . 2 Ballistic Cannon 4 | . 3 . 1 . Launcher 1 | . . . . 1 Special Weapon 1 | . . . 1 . Impact Weapon . | . . . . . Slashing Weapon 2 | . . . . 2 Piercing Weapon . | . . . . . Special Melee Weapon . | . . . . . Unidentified Prototypes 2 | . 1 . 1 . Corrupted Parts 1 | . . . . 1 System Corruption 3 | . . . . 3 Parts Lost 35 | . 1 3 . 31 Power 9 | . 1 . . 8 Propulsion 10 | . . 2 . 8 Utility 9 | . . . . 9 Weapon 7 | . . 1 . 6 Highest Loss Streak 10 | . 1 2 . 10 To Critical Strikes . | . . . . . Average Backups 11 | 5 10 13 13 7 Power 1 | . 1 2 2 . Propulsion 2 | 3 2 3 2 2 Utility 3 | . 1 3 4 2 Weapon 3 | . 4 4 3 2 Tool/Special . | . . . . . Unused Backups 12 | . 7 2 1 2 Power . | . . . . . Propulsion 5 | . 4 . . 1 Utility 2 | . 1 . . 1 Weapon 5 | . 2 2 1 . Tool/Special . | . . . . . Average Slot Usage (%) 90 | . 100 99 94 71 Engine 7 | . 14 14 5 5 Core 4 | . . . 8 2 Treads 2 | . . . . 8 Leg 23 | . 28 28 28 9 Device 14 | . 14 14 14 16 Storage 12 | . 14 14 14 8 Protection 1 | . . . . 4 Ballistic Gun 2 | . 7 . . 4 Ballistic Cannon 14 | . 20 27 17 . Special Weapon 3 | . . . 5 2 Peak Build Rating 61 | 7 22 23 36 61 Average Rating 28 | 5 9 21 28 45 On Entrance 17 | . 7 22 22 36 Avg Prop Armor Cover (%) 3 | . . . . 3 Naked Turns . | . . . . . Heaviest Build 61 | 11 32 32 44 61 Greatest Support 112 | 20 20 20 20 112 Greatest Overweight (x) 7 | 1 1 1 2 7 Average Overweight (x) 1 | . . 1 1 . Largest Inventory Capacity 15 | 8 15 15 15 15 Average Capacity 14 | 7 13 15 15 15 Most Carried 15 | 8 15 15 15 14 Average Carried 11 | 5 10 14 14 8 Final Capacity 15 | 8 15 15 15 15 Final Carried 15 | 8 15 13 15 7 Scrap Suit Usage (%) 18 | . . . . 72 Parts Cannibalized 5 | . . . . 5 Class Distribution -------------------- 86% | Mutant 5% | Scavenger-Mutant 3% | Skirmisher 3% | Tank Dominant Class ---------------- Mutant | -10/Materials Mutant | -10/Subcaves Mutant | -9/Scraptown Mutant | -6/Factory Resources | -11 -10 -10 -9 -6 ----------- Run | Yrd Mat Sub Scr Fac Matter Collected 2191 | 298 540 92 327 934 Remotely . | . . . . . Salvage Created 1794 | 117 296 19 . 1362 Parts 69 | 5 18 3 . 43 Haulers Intercepted . | . . . . . Recyclers Shooed 5 | . . . . 5 Parts Field Recycled . | . . . . . Retrieved Matter . | . . . . . Parts Self-Destructed 2 | . . 2 . . Prevented . | . . . . . Parts Restored . | . . . . . Kills | -11 -10 -10 -9 -6 ------- Run | Yrd Mat Sub Scr Fac Combat Hostiles Destroyed 29 | . 10 2 . 17 Melee 1 | . . . . 1 Guns 7 | . 1 . . 6 Cannons 16 | . 9 2 . 5 AOE 2 | . . . . 2 Classes Destroyed 13 | 2 2 2 . 7 Worker 4 | . . . . 4 Builder 1 | . . . . 1 Tunneler 3 | 2 . . . 1 Recycler 7 | 1 1 . . 5 Mechanic 1 | . . . . 1 Swarmer 5 | . 3 . . 2 Cutter 2 | . . . . 2 Grunt 10 | . 7 . . 3 Sentry 3 | . . . . 3 Specialist 4 | . . . . 4 Programmer 3 | . . . . 3 Subdweller 2 | . . 2 . . Scientist 1 | . . 1 . . Best Kill Streak 6 | 3 3 1 . 6 Combat Bots Only 3 | . 3 1 . 3 Max Kills in Single Turn 2 | 1 1 1 . 2 Gunslinging . | . . . . . Exploded 1 | . . . . 1 Melee 1 | . . . . 1 Uniques/NPCs Destroyed . | . . . . . Combat | -11 -10 -10 -9 -6 -------- Run | Yrd Mat Sub Scr Fac Hostile Shots Fired 556 | . 55 31 . 470 Missed 166 | . 10 10 . 146 Hits 390 | . 45 21 . 324 Melee 6 | . . . . 6 Projectile 384 | . 45 21 . 318 AOE 5 | . . 5 . . Critical Strikes 19 | . . 2 . 17 Damage Taken 5406 | . 520 645 . 4241 Core 947 | . 99 146 . 702 Absorbed by Shields . | . . . . . Redirected to Shielding 44 | . . . . 44 Ignored by Resistances 410 | . . . . 410 Regen/Repaired (Parts) 217 | . 178 . . 39 Core Remaining (%) 51 | 100 . . 3 . Volleys Fired 153 | 10 34 27 . 82 Largest 2 | 2 2 2 . 2 Hottest 66 | 60 66 66 . 30 Shots Fired 249 | 20 68 51 . 110 Gun 122 | 20 29 . . 73 Cannon 90 | . 39 51 . . Launcher 7 | . . . . 7 Special 30 | . . . . 30 Kinetic 210 | 18 68 51 . 73 Thermal . | . . . . . Explosive 7 | . . . . 7 Electromagnetic 2 | 2 . . . . Impact 30 | . . . . 30 Robot Hit Streak 11 | 8 9 6 . 11 Robot Miss Streak 7 | 1 4 3 . 7 Penetration Max . | . . . . . Secondary Targets . | . . . . . Shots Hit Robots 171 | 15 36 27 . 93 Core Hits 126 | 6 14 6 . 100 Critical Kills 2 | . . . . 2 Critical Parts Destroyed 5 | . 1 . . 4 Critical Strikes 8 | . 1 1 . 6 Destroy 1 | . 1 . . . Blast 1 | . . 1 . . Smash 6 | . . . . 6 Melee Attacks 11 | . . . . 11 Impact . | . . . . . Slashing 11 | . . . . 11 Piercing . | . . . . . Sneak Attacks . | . . . . . Combat Hostiles . | . . . . . Follow-up Attacks . | . . . . . Damage Inflicted 4543 | 125 617 541 . 3260 Guns 1478 | 125 134 . . 1219 Cannons 1024 | . 483 541 . . Explosions 455 | . . . . 455 Melee 116 | . . . . 116 Ramming . | . . . . . Kinetic 2487 | 110 617 541 . 1219 Thermal . | . . . . . Explosive 455 | . . . . 455 Electromagnetic 15 | 15 . . . . Impact 1470 | . . . . 1470 Slashing 116 | . . . . 116 Piercing . | . . . . . Highest Corruption 12 | . . 4 . 12 Average Corruption 4 | . . 2 . 5 Corruption Purged . | . . . . . Corruption Blocked . | . . . . . Effects 45 | . . 10 . 35 Message Errors 13 | . . . . 13 Matter Fused 7 | . . 3 . 4 Heat Flow Errors 3 | . . 1 . 2 Energy Discharges 5 | . . 3 . 2 Parts Rejected 2 | . . . . 2 Data Loss (minor) 10 | . . 2 . 8 Data Loss (major) 1 | . . . . 1 Misfires 3 | . . . . 3 Alerts 1 | . . 1 . . Overload Shots . | . . . . . Overflow Damage 813 | . . . . 813 Projectiles 719 | . . . . 719 Explosions 94 | . . . . 94 Melee . | . . . . . Knockbacks 26 | . 9 11 . 6 Impact 5 | . . . . 5 Kinetic 20 | . 9 11 . . Secondary 1 | . . . . 1 Self-Inflicted Damage 252 | . . . . 252 Shots 6 | . . . . 6 Rammed 2 | . . . . 2 Targets Rammed 2 | . . . . 2 Kicked . | . . . . . Crushed . | . . . . . Highest Temperature 268 | 20 82 187 . 268 Average Temperature 52 | 15 26 97 . 92 Received Heat Transfer 771 | . 204 . . 567 Siege Activations . | . . . . . Martial Activations . | . . . . . Shielding Activations . | . . . . . Robots Disrupted . | . . . . . Combat Hostiles . | . . . . . Robots Corrupted 6 | . . . . 6 Combat Hostiles 3 | . . . . 3 Parts Fried 9 | . . . . 9 Impact Corruptions 22 | . . . . 22 Robots Melted . | . . . . . Combat Hostiles . | . . . . . Parts Melted 1 | . . . . 1 Heat Transferred . | . . . . . Parts Sabotaged . | . . . . . Parts Stolen . | . . . . . Parts Stripped . | . . . . . Power Chain Reactions . | . . . . . Alert | -11 -10 -10 -9 -6 ------- Run | Yrd Mat Sub Scr Fac Maximum Alert Level 1 | . . . . 1 Low Security (%) 89 | 100 100 . . 81 Level 1 10 | . . . . 18 Level 2 . | . . . . . Level 3 . | . . . . . Level 4 . | . . . . . Level 5 . | . . . . . High Security . | . . . . . Max Security . | . . . . . Peak Influence 244 | 5 86 . . 244 Initial . | . . . . . Average 83 | . 19 . . 131 Influence Increases 1146 | 15 289 . . 842 Destroy 0b10 Robot/C 580 | . 200 . . 380 Destroy 0b10 Robot/NC 80 | 15 5 . . 60 Destroy Leader 160 | . 40 . . 120 Allied During Kill 6 | . . . . 6 Successful Hack 42 | . 42 . . . Disable Machine 75 | . . . . 75 Destroy Structure 68 | . 2 . . 66 Lose Combat Pursuer 135 | . . . . 135 Influence Decreases 1100 | 15 289 . . 796 Time Decay 760 | 15 279 . . 466 Lost Part 320 | . 10 . . 310 Lost Ally 20 | . . . . 20 Squads Dispatched 12 | . 2 . . 10 Investigation 1 | . 1 . . . Extermination 3 | . . . . 3 Reinforcement 8 | . 1 . . 7 Assault . | . . . . . Garrison . | . . . . . Intercept . | . . . . . Searches Triggered . | . . . . . Construction Impeded 2 | . . . . 2 Haulers Reinforced . | . . . . . Active Scanning Responses . | . . . . . Cargo Convoy Interrupts 1 | . . . . 1 Stealth | -11 -10 -10 -9 -6 --------- Run | Yrd Mat Sub Scr Fac Distress Signals 1 | . 1 . . . Communications Jammed . | . . . . . Distress Signals . | . . . . . Times Spotted 52 | . 12 4 . 36 Peak Tracking Total 6 | . 3 2 . 6 Tactical Retreats 5 | . . 1 . 4 Traps | -11 -10 -10 -9 -6 ------- Run | Yrd Mat Sub Scr Fac Traps Triggered 1 | . 1 . . . Indirectly . | . . . . . Trap Hack Attempts . | . . . . . Triggered . | . . . . . Disarmed . | . . . . . Reprogrammed . | . . . . . Reused . | . . . . . Traps Extracted . | . . . . . Installed . | . . . . . Triggered . | . . . . . Machines | -11 -10 -10 -9 -6 ---------- Run | Yrd Mat Sub Scr Fac Machines Disabled 5 | . . . . 5 Max in Single Turn 4 | . . . . 4 Machines Repaired . | . . . . . Machines Dismantled . | . . . . . Machines Sabotaged . | . . . . . Overloaded Fab Kills . | . . . . . Hacking | -11 -10 -10 -9 -6 --------- Run | Yrd Mat Sub Scr Fac Machines Accessed 11 | . 7 . 4 . Terminals 6 | . 6 . . . Fabricators . | . . . . . Repair Stations 1 | . 1 . . . Recycling Units . | . . . . . Scanalyzers . | . . . . . Garrison Access . | . . . . . Total Hacks 37 | . 20 . 17 . Successful 30 | . 13 . 17 . Failed 7 | . 7 . . . Catastrophic . | . . . . . Database Lockouts . | . . . . . Manual 17 | . 17 . . . Terminals 13 | . 13 . . . Fabricators . | . . . . . Repair Stations 7 | . 7 . . . Recycling Units . | . . . . . Scanalyzers . | . . . . . Garrison Access . | . . . . . Terminal Hacks 18 | . 1 . 17 . Record 16 | . . . 16 . Robot Schematic 1 | . 1 . . . Proto ID Catalog 1 | . . . 1 . Fabricator Hacks . | . . . . . Repair Station Hacks 6 | . 6 . . . Scan Component 3 | . 3 . . . Repair 3 | . 3 . . . Recycling Unit Hacks . | . . . . . Scanalyzer . | . . . . . Garrison Access Hacks . | . . . . . Unauthorized Hacks 6 | . 6 . . . Terminals 6 | . 6 . . . Assimilate 1 | . 1 . . . Skim 5 | . 5 . . . Fabricators . | . . . . . Repair Stations . | . . . . . Recycling Units . | . . . . . Scanalyzers . | . . . . . Garrison Access . | . . . . . Data Cores Recovered . | . . . . . Used . | . . . . . Hacking Detections 5 | . 5 . . . Full Trace Events 1 | . 1 . . . Feedback Events . | . . . . . Feedback Blocked . | . . . . . Robot Schematics Acquired 1 | . 1 . . . Robots Built . | . . . . . Authchips . | . . . . . Time . | . . . . . Total Robot Build Rating . | . . . . . Part Schematics Acquired . | . . . . . Parts Built . | . . . . . Authchips . | . . . . . Time . | . . . . . Total Part Build Rating . | . . . . . Part Studies Acquired . | . . . . . Parts Repaired 3 | . 3 . . . Time 84 | . 84 . . . Parts Recycled . | . . . . . Recycled Matter . | . . . . . Retrieved Matter . | . . . . . Retrieved Components . | . . . . . Parts Scanalyzed . | . . . . . Part Schematics Acquired . | . . . . . Parts Damaged . | . . . . . Bothacking | -11 -10 -10 -9 -6 ------------ Run | Yrd Mat Sub Scr Fac Used RIF Installer . | . . . . . Robots Hacked . | . . . . . Non-combat . | . . . . . Combat . | . . . . . Robot Hacks Applied . | . . . . . Relay Couplers Released . | . . . . . Fabnet Peak Effective % . | . . . . . Robots Rewired . | . . . . . Allies Hacked . | . . . . . Hacks Repelled . | . . . . . Allies | -11 -10 -10 -9 -6 -------- Run | Yrd Mat Sub Scr Fac Total Allies 2 | . . . . 2 Largest Group 2 | . . . . 2 Highest-Rated Group 66 | . . . . 66 Highest-Rated Ally 33 | . . . . 33 Initial UFD Resources 24 | . . . . 24 Total Orders 1 | . . . 1 . EXPLORE 1 | . . . 1 . Ally Attacks 11 | . . . . 11 Total Damage 195 | . . . . 195 Kills 2 | . . . . 2 Allies Corrupted . | . . . . . Allies Melted . | . . . . . X0-1V1 Amusement Gains 99 | . 4 . . 95 Average Entertainment 12 | . 4 2 . 16 Good Acts 17 | . . 4 . 13 Bad Acts 9 | . . 3 . 6 Intel | -11 -10 -10 -9 -6 ------- Run | Yrd Mat Sub Scr Fac Active Infowar (turns) 2739 | 28 1365 . . 1346 Sensors 565 | . . . . 565 IFF 166 | . . . . 166 Seismic 1692 | 28 1365 . . 299 Jamming 615 | . . . . 615 Robot Analysis Total . | . . . . . Derelict Logs Recovered 1 | . . . 1 . Drone Launches 3 | . . . 3 . Drone Recoveries . | . . . . . Exploration | -11 -10 -10 -9 -6 ------------- Run | Yrd Mat Sub Scr Fac Turns Passed 8046 | 127 1370 874 3677 1998 Spaces Moved 3623 | 65 612 409 1710 827 Core 18 | 12 . . . 6 Treads 304 | . . . . 304 Legs 3265 | 53 612 409 1710 481 Wheels 31 | . . . . 31 Hover 5 | . . . . 5 Flight . | . . . . . Fastest Speed 50 | 50 120 190 190 101 Average Speed 193 | 110 164 190 211 184 Slowest Speed 490 | 120 190 190 260 490 Overloaded Moves . | . . . . . Propulsion Burnouts . | . . . . . Robots Hopped . | . . . . . Potential Cave-ins . | . . . . . Cave-ins Triggered . | . . . . . Exploration Rate (%) 39 | 3 73 17 92 10 Regions Visited 4 Branch Regions 2 Pre-discovered Areas 1 | . 1 . . . Known Exits Taken 1 | . 1 . . . Unknown Exits Taken 3 | 1 . 1 1 . Scrap Searched 10 | . . 3 7 . Spaces Dug . | . . . . . Terrain Destroyed 78 | . . 1 . 77 Melee . | . . . . . Projectile 10 | . . 1 . 9 AOE 68 | . . . . 68 Terrain Rammed . | . . . . . Walls Destroyed . | . . . . . Machines Disabled . | . . . . . Actions | -11 -10 -10 -9 -6 --------- Run | Yrd Mat Sub Scr Fac Total 4416 | 99 914 456 1780 1167 Wait 469 | 9 224 12 54 170 Move 3619 | 64 611 408 1709 827 Hop . | . . . . . Pick Up 61 | 8 21 2 6 24 Fast Attach 9 | 7 . . 2 . Attach 41 | . 1 3 1 36 Detach 3 | . . . . 3 Swap 22 | 1 11 1 2 7 Drop 26 | . 12 3 6 5 Fire 153 | 10 34 27 . 82 Melee 11 | . . . . 11 Ram 1 | . . . . 1 Kick . | . . . . . Crush 1 | . . . . 1 Escape Stasis . | . . . . . Rewire . | . . . . . Trap . | . . . . . Miscellaneous . | . . . . . Route ------- -11/Scrapyard -10/Materials (discovered 5 exits: *Mat x3 / *Min / *Sub) -10/Subcaves -9/Scraptown (discovered 2 exits: [*Fac x2]) -6/Factory (discovered 2 exits: Fac / Low) History --------- Turn | Location | Event 14 | -11/Scrapyard | Discovered new exit (range 15) 128 | -11/Scrapyard | Entered Materials 129 | -10/Materials | Met a group of wandering Federalists 308 | -10/Materials | Build established: Mutant 383 | -10/Materials | Discovered new exit (range 16) 684 | -10/Materials | Discovered new exit (range 16) 827 | -10/Materials | Learned location of Mines (-10) 870 | -10/Materials | Identified exit to Materials 903 | -10/Materials | Identified exit to Mines 928 | -10/Materials | Loaded intel: 6 trap records 945 | -10/Materials | Learned 4 Recycling zone layouts 951 | -10/Materials | Identified exit to Subcaves 1073 | -10/Materials | Repaired Aluminum Leg 1100 | -10/Materials | Repaired Aluminum Leg 1133 | -10/Materials | Repaired Imp. Light Cannon 1490 | -10/Materials | Prayed at D.C.S.S. Altar Unit 1498 | -10/Materials | Entered Subcaves 1499 | -10/Subcaves | Continued accompanying wandering Federalists (1) 1499 | -10/Subcaves | Approached by a straggling Scientist 1619 | -10/Subcaves | Disturbed a concealed Subdweller 1627 | -10/Subcaves | Core integrity fell below 50% 2079 | -10/Subcaves | A swath of the cavern ceiling suddenly collapsed 2199 | -10/Subcaves | Core integrity fell below 20% 2200 | -10/Subcaves | Ambushed by Subdweller buried in earth 2276 | -10/Subcaves | Matter capacity permanently improved by X0-1V1 (+200; -100 max core) 2372 | -10/Subcaves | Entered Scraptown 2372 | -9/Scraptown | System corruption cleaned by C-Scrubber 2842 | -9/Scraptown | Discovered new exit (range 11) 2887 | -9/Scraptown | Scanned Subdweller tech in exchange for log data 2893 | -9/Scraptown | Learned location of 1 exit from Factory 2935 | -9/Scraptown | Visited Fellowship of the Rings 2961 | -9/Scraptown | Visited SPCMW 3123 | -9/Scraptown | Visited Red Mages 3212 | -9/Scraptown | Visited Comm Corps 3275 | -9/Scraptown | Heard Great Nut preacher, LISTEN AND RECITE! 3579 | -9/Scraptown | Visited Bundlers 3755 | -9/Scraptown | Visited IN-MT5's Study 3806 | -9/Scraptown | Visited Cyclists 3840 | -9/Scraptown | Visited UFD Registry 3840 | -9/Scraptown | Registered with UFD as "Flexiforce" 3880 | -9/Scraptown | Entered Cyclist Reading Room 4235 | -9/Scraptown | Visited Science Guys 4309 | -9/Scraptown | Visited LU-1G1's Boring Crew 4406 | -9/Scraptown | Visited Junk Cannon Lab 4496 | -9/Scraptown | Delivered Scrap Shield to a Scientist 4670 | -9/Scraptown | Found Prototype Special Weapon 4672 | -9/Scraptown | Identified Junk Cannon 4767 | -9/Scraptown | Visited Scrap Suit Storage 4783 | -9/Scraptown | Found Scrap Suit 4851 | -9/Scraptown | Visited Abandonware Association 4880 | -9/Scraptown | Learned abandonware demo "REVENGE.EXE" 4880 | -9/Scraptown | Learned abandonware demo "REBOOT5.EXE" 4960 | -9/Scraptown | Visited Infowarlord's Domain 4989 | -9/Scraptown | Found Exp. Sensor Array 5029 | -9/Scraptown | Visited Cartography Club 5217 | -9/Scraptown | Discovered new exit (range 9) 5484 | -9/Scraptown | Visited Research Penetration Think Tank 5588 | -9/Scraptown | Visited Curators Association 5892 | -9/Scraptown | Met Optimus 5892 | -9/Scraptown | Accepted into 0bPrime 6049 | -9/Scraptown | Entered Factory 6049 | -6/Factory | Evolved 8 slots: Power x1, Propulsion x2, Utility x4, Weapon x1 6050 | -6/Factory | Identified exit to Factory 6337 | -6/Factory | Sensors blinded by X0-1V1 6646 | -6/Factory | Lost 6 parts (3p1n2u) 6725 | -6/Factory | X0-1V1 foreshadows a heat wave 6749 | -6/Factory | Identified exit to Lower Caves 6749 | -6/Factory | X0-1V1 revealed exit location to -6/Lower Caves 6780 | -6/Factory | X0-1V1 downgraded hostiles (x2) 6946 | -6/Factory | Ambient heat levels rising (+10) 7074 | -6/Factory | Lost 4 parts (2p1u1w) 7132 | -6/Factory | Cargo convoy interrupted 7216 | -6/Factory | Ambient heat levels rising (+10) 7373 | -6/Factory | X0-1V1 caused items to flee you 7412 | -6/Factory | EM resistance permanently improved by X0-1V1 (+20%; -200 max core) 7433 | -6/Factory | X0-1V1 sent allied Scrapper (x2) 7482 | -6/Factory | Ambient heat levels falling (-10) 7648 | -6/Factory | Items stopped fleeing you 7651 | -6/Factory | Ambient heat levels falling (-10) 7857 | -6/Factory | Lost 4 parts (1p1u2w) 7871 | -6/Factory | X0-1V1 downgraded hostiles (x2) 7935 | -6/Factory | Core integrity fell below 50% 7952 | -6/Factory | System corruption reached 10% 7953 | -6/Factory | Lost 10 parts (3n4u3w) 8009 | -6/Factory | X0-1V1 activates XOMVISION 8039 | -6/Factory | Core integrity fell below 20% 8047 | -6/Factory | Destroyed by Y-54 Guardian with Gatling Laser Last Messages --------------- 07982_ TUCGUTLY,GBP&JJDQ:JL%IPN 07999_ Acquired 16 matter. 08007_ System corrupted: Matter fused (-9). X0-1V1's Piety Tracker suddenly appears amidst shimmering waves of color. 08009_ Suggestive images of robots vie for attention in your data streams. 08009_ X0-1V1: "Enjoy your XOMVISION!" 08017_ X0-1V1: "I know that drunk sailor look when I see it." 08025_ System corrupted: Med. Treads rejected. 08030_ Med. Treads destroyed. 08033_ Movement behavior is fully back under control. 08034_ Med. Treads destroyed. 08036_ Slammed into Y-54 Guardian. 08036_ Destabilizing: Core damaged (-11). 08046_ TIDD>MYSTMF3/4ZO60BOXRUP&6QN 08047_ X0-1V1 laughs nastily! [Achievement: Back For More] Map ----- +----------------------------------------------------+ | ?????????# #??????# ""R" # # | | ?????????+ +??????# "" " # #+#####+## | | ?????????# #??????# ## # | | ?????????### ## #??????# ## ## | | ???????????# ########??????# ## # | | ??????????## ##????????????# ## ## | | ?????????## ############## """! ############# | | ?????????+ / """ =#????# ## | | ?????????## ######## ##### """ #????# ## | | ??????????#####??????# #???# "" #????# ## | | ?????????????????????# #???# "" #????# ## | | ????????????????????? ???# #????# "Y" #? | | ????????????????????? ???####/###????# """ #? | | ????????????????????? ????# !#????# #???? | | ????????????????????? ????# ###+#####+##???? | | ????????????????????? ????# " ?? | | ?????????????????????###????# #######????????? | | ????????????????????????????# #??????????????? | | ????????????????????????????###h###??????????????? | | ???????????????????????????#### #????????????????? | | ???????????????????????????# = #????????????????? | | ???????????????????????????#Y####????????????????? | | ???????????????????????????#g#???????????????????? | | ???????????????????????????#h#???????????????????? | | ??????????????????##########/###?????????????????? | | ??????????????????# @[p #?????????????????? | | ??????????????????# Y #????????????????? | | ??????????????????# """ """ ##????????????????? | | ??????????????????# """ """ #?????????????????? | | ??????????????????#! """ """ #?????????????????? | | ??????????????????# #?????????????????? | | ??????????????????? """ """ #?????????????????? | | ??????????????????? """ """ #?????????????????? | | ???????????????????? """ ??" #?????????????????? | | ?????????????????????? ?? #?????????????????? | | ??????????????????????? ?? #?????????????????? | | ??????????????????????? ??? #?????????????????? | | ???????????????????????#????####?????????????????? | | ?????????????????????????????????????????????????? | | ?????????????????????????????????????????????????? | | ?????????????????????????????????????????????????? | | ?????????????????????????????????????????????????? | | ?????????????????????????????????????????????????? | | ?????????????????????????????????????????????????? | | ?????????????????????????????????????????????????? | | ?????????????????????????????????????????????????? | | ?????????????????????????????????????????????????? | | ?????????????????????????????????????????????????? | | ?????????????????????????????????????????????????? | | ?????????????????????????????????????????????????? | +----------------------------------------------------+ Best States ------------- Heat Dissipation 37 Energy Generation 30 Energy Capacity 1375 Matter Stores 700 Matter Capacity 900 Sight Range 16 Robot Scan Range 20 Terrain Scan Density 10 Jamming Range 12 Resistance: KI 47 Resistance: EM 20 Core Shielding 20 Evasion (%) 55 Recoil Reduction 4 Item Schematics ----------------- None Robot Schematics ------------------ G-34 Mercenary | -10/Materials | Hacked Fabricated ------------ Nothing Repaired ---------- Aluminum Leg | 56% | -10/Materials Aluminum Leg | 60% | -10/Materials Imp. Light Cannon | 23% | -10/Materials Studied --------- None Alien Tech Used ----------------- None Achievements -------------- Back For More Hey, That's Mine! Challenges ------------ None Game ------ Seed SapperHackingMicrothruster Manual? 0 Play Time 00:57:29 Cumulative 26.2 hours Start 2026.09.20 @ 15:00:47 End 2026.09.20 @ 16:05:40 Sessions 1 Manual Loads 0 Difficulty Rogue Special Mode None Game No. 50 Rogue 50 Adventurer 0 Explorer 0 Win Type - Total 0 Types 0/0/0/0/0/0/0/0/0/0 Lore% 35 Gallery% 20 Achievement% 17 Wizard Run 0 Options --------- Layout 2 ASCII 0 Keyboard 0 Movement Mouse Keybinds 0 Fullscreen 2 Font 24/Smallcaps Map View 50x44 Zoom Use 0% Tactical HUD 1 Map Filters NONE Filters NONE Steam 1 RUN: 3e5e3d29-12b3-4ed2-a571-8ff9aded46e7